[Event "Live Chess"]
[Site "Chess.com"]
[Date "2024.06.02"]
[Round "-"]
[White "AlanBstard10"]
[Black "RichardABates"]
[Result "0-1"]
[WhiteElo "1177"]
[BlackElo "2355"]
[TimeControl "300"]
[EndTime "0:12:40 PDT"]
[Termination "RichardABates won by resignation"]

1. b4 {[%clk 0:04:56.2]} 1... c6 {[%clk 0:04:57.1]} 2. Bb2 {[%clk 0:04:55]} 2...
Qb6 {[%clk 0:04:55.4]} 3. a3 {[%clk 0:04:53.1]} 3... a5 {[%clk 0:04:53.9]} 4. c4
{[%clk 0:04:49.8]} 4... axb4 {[%clk 0:04:52.2]} 5. axb4 {[%clk 0:04:47.6]} 5...
Rxa1 {[%clk 0:04:50.4]} 6. Bxa1 {[%clk 0:04:36]} 6... Qxb4 {[%clk 0:04:48.9]} 7.
e3 {[%clk 0:04:29.7]} 7... Nf6 {[%clk 0:04:46.9]} 8. Bc3 {[%clk 0:04:27.1]} 8...
Qb6 {[%clk 0:04:42.2]} 9. Nf3 {[%clk 0:04:22.7]} 9... d5 {[%clk 0:04:40.7]} 10.
cxd5 {[%clk 0:04:16.6]} 10... Nxd5 {[%clk 0:04:34.3]} 11. Be2 {[%clk 0:04:13.1]}
11... Nxc3 {[%clk 0:04:32.4]} 12. Nxc3 {[%clk 0:04:12.2]} 12... Bg4 {[%clk
0:04:27.7]} 13. O-O {[%clk 0:04:10.4]} 13... e6 {[%clk 0:04:26.1]} 14. Nd4
{[%clk 0:04:06]} 14... Bxe2 {[%clk 0:04:23.5]} 15. Qxe2 {[%clk 0:04:05.7]} 15...
Be7 {[%clk 0:04:20.1]} 16. Rb1 {[%clk 0:04:01.6]} 16... Qc7 {[%clk 0:04:18.4]}
17. Rc1 {[%clk 0:03:47.8]} 17... O-O {[%clk 0:04:14.2]} 18. Ncb5 {[%clk
0:03:45.2]} 18... Qb6 {[%clk 0:04:11.5]} 19. Nc3 {[%clk 0:03:38]} 19... Nd7
{[%clk 0:04:09]} 20. Rb1 {[%clk 0:03:34.9]} 20... Qa7 {[%clk 0:04:05.5]} 21. Qd3
{[%clk 0:03:27.2]} 21... Nc5 {[%clk 0:03:55.2]} 22. Qc2 {[%clk 0:03:18]} 22...
Bf6 {[%clk 0:03:52.7]} 23. Qb2 {[%clk 0:03:03]} 23... Bxd4 {[%clk 0:03:50.3]}
24. exd4 {[%clk 0:03:01.1]} 24... Nd3 {[%clk 0:03:49.1]} 25. Qxb7 {[%clk
0:02:59.1]} 25... Qxd4 {[%clk 0:03:47.6]} 26. Rf1 {[%clk 0:02:30.6]} 26... c5
{[%clk 0:03:45.8]} 27. Ne2 {[%clk 0:02:22.6]} 27... Qd5 {[%clk 0:03:40.9]} 28.
Qxd5 {[%clk 0:02:19.6]} 28... exd5 {[%clk 0:03:39.4]} 29. Nc3 {[%clk 0:02:16.1]}
29... d4 {[%clk 0:03:36.8]} 30. Ne4 {[%clk 0:02:12.8]} 30... Re8 {[%clk
0:03:30.5]} 31. f3 {[%clk 0:02:09.6]} 31... f5 {[%clk 0:03:24.4]} 32. Nd6 {[%clk
0:02:06]} 32... Re5 {[%clk 0:03:22.4]} 33. h3 {[%clk 0:02:01.3]} 33... g6 {[%clk
0:03:20.4]} 34. Ra1 {[%clk 0:01:59.7]} 34... Re1+ {[%clk 0:03:17.1]} 35. Rxe1
{[%clk 0:01:57.5]} 35... Nxe1 {[%clk 0:03:16]} 36. Kf2 {[%clk 0:01:56.2]} 36...
Nd3+ {[%clk 0:03:12.8]} 37. Ke2 {[%clk 0:01:53.5]} 37... Nf4+ {[%clk 0:03:11.4]}
38. Kf2 {[%clk 0:01:52.2]} 38... Kf8 {[%clk 0:03:06.5]} 39. Kg3 {[%clk
0:01:46.5]} 39... Ne6 {[%clk 0:03:01.6]} 40. Nc4 {[%clk 0:01:42.9]} 40... Ke7
{[%clk 0:02:59.1]} 41. Kf2 {[%clk 0:01:40.2]} 41... Nf4 {[%clk 0:02:55.8]} 42.
Kg3 {[%clk 0:01:37.6]} 42... Nd3 {[%clk 0:02:54.3]} 43. h4 {[%clk 0:01:31.6]}
43... Ke6 {[%clk 0:02:52.2]} 44. f4 {[%clk 0:01:29.5]} 44... Kd5 {[%clk
0:02:46.8]} 45. Nb6+ {[%clk 0:01:24.3]} 45... Kc6 {[%clk 0:02:41.9]} 46. Na4
{[%clk 0:01:22.9]} 46... c4 {[%clk 0:02:38.5]} 47. Kf3 {[%clk 0:01:16.6]} 47...
Kb5 {[%clk 0:02:37.2]} 48. Ke2 {[%clk 0:01:09.9]} 48... Kxa4 {[%clk 0:02:34.9]}
49. Kd1 {[%clk 0:01:07.9]} 49... Nxf4 {[%clk 0:02:33.1]} 0-1

[Event "Live Chess"]
[Site "Chess.com"]
[Date "2024.06.02"]
[Round "-"]
[White "booktrunk"]
[Black "VIDYUTGANESH"]
[Result "1-0"]
[WhiteElo "1521"]
[BlackElo "1728"]
[TimeControl "300"]
[EndTime "0:13:01 PDT"]
[Termination "booktrunk won by resignation"]

1. d4 {[%clk 0:04:53.7]} 1... d5 {[%clk 0:04:57.8]} 2. Nc3 {[%clk 0:04:50.9]}
2... Nf6 {[%clk 0:04:53.4]} 3. g3 {[%clk 0:04:33]} 3... e6 {[%clk 0:04:51.8]} 4.
Bf4 {[%clk 0:04:31.7]} 4... Bb4 {[%clk 0:04:50.3]} 5. a3 {[%clk 0:04:29.7]} 5...
Bxc3+ {[%clk 0:04:48.8]} 6. bxc3 {[%clk 0:04:29.6]} 6... O-O {[%clk 0:04:47.4]}
7. Bg2 {[%clk 0:04:28.8]} 7... Nc6 {[%clk 0:04:40.9]} 8. Nf3 {[%clk 0:04:28.2]}
8... Re8 {[%clk 0:04:40.2]} 9. O-O {[%clk 0:04:26.2]} 9... Ne4 {[%clk
0:04:39.9]} 10. Qd3 {[%clk 0:04:21.5]} 10... a5 {[%clk 0:04:34.2]} 11. Ne5
{[%clk 0:04:20.1]} 11... Nxe5 {[%clk 0:04:28.3]} 12. Bxe5 {[%clk 0:04:17.5]}
12... Nd6 {[%clk 0:04:15.7]} 13. Bxd6 {[%clk 0:04:11.9]} 13... Qxd6 {[%clk
0:04:13.8]} 14. e3 {[%clk 0:04:05.5]} 14... b6 {[%clk 0:04:12.6]} 15. c4 {[%clk
0:04:03.7]} 15... dxc4 {[%clk 0:04:10.3]} 16. Qxc4 {[%clk 0:04:02]} 16... Ba6
{[%clk 0:04:09.3]} 17. Qc3 {[%clk 0:03:58]} 17... Rac8 {[%clk 0:03:57.6]} 18.
Rfd1 {[%clk 0:03:55.5]} 18... h6 {[%clk 0:03:33.5]} 19. Bf1 {[%clk 0:03:54.5]}
19... Bb7 {[%clk 0:03:31.1]} 20. Bg2 {[%clk 0:03:52.8]} 20... Bxg2 {[%clk
0:03:28.1]} 21. Kxg2 {[%clk 0:03:51.1]} 21... Qd5+ {[%clk 0:03:26.8]} 22. Kg1
{[%clk 0:03:48.7]} 22... f5 {[%clk 0:03:23.9]} 23. Qe1 {[%clk 0:03:44.8]} 23...
g5 {[%clk 0:03:21.2]} 24. Qe2 {[%clk 0:03:43]} 24... Kh7 {[%clk 0:03:15.7]} 25.
c4 {[%clk 0:03:37]} 25... Qe4 {[%clk 0:03:00.9]} 26. Qh5 {[%clk 0:03:32.3]}
26... Re7 {[%clk 0:02:51.7]} 27. Rac1 {[%clk 0:03:26.1]} 27... f4 {[%clk
0:02:38.7]} 28. exf4 {[%clk 0:03:23.2]} 28... gxf4 {[%clk 0:02:36.7]} 29. Re1
{[%clk 0:03:12]} 29... Qxd4 {[%clk 0:02:34.2]} 30. Rcd1 {[%clk 0:03:10.1]} 30...
Qxc4 {[%clk 0:02:27.2]} 31. Qe5 {[%clk 0:03:06.2]} 31... fxg3 {[%clk 0:02:22.8]}
32. hxg3 {[%clk 0:03:03]} 32... Qg4 {[%clk 0:02:14.6]} 33. Rd4 {[%clk
0:02:56.1]} 33... Qg7 {[%clk 0:02:11.9]} 34. Qf4 {[%clk 0:02:46.8]} 34... e5
{[%clk 0:01:58.2]} 35. Qf5+ {[%clk 0:02:41.7]} 35... Qg6 {[%clk 0:01:52.1]} 36.
Qxc8 {[%clk 0:02:40.3]} 36... Re8 {[%clk 0:01:45.1]} 37. Rd7+ {[%clk 0:02:37.1]}
1-0

[Event "Live Chess"]
[Site "Chess.com"]
[Date "2024.06.02"]
[Round "-"]
[White "KeithArkell"]
[Black "upoe610"]
[Result "0-1"]
[WhiteElo "2404"]
[BlackElo "2202"]
[TimeControl "300"]
[EndTime "0:13:56 PDT"]
[Termination "upoe610 won on time"]

1. d4 {[%clk 0:04:57.1]} 1... Nf6 {[%clk 0:04:59]} 2. Nf3 {[%clk 0:04:56.2]}
2... c5 {[%clk 0:04:58]} 3. d5 {[%clk 0:04:55.3]} 3... b5 {[%clk 0:04:56.6]} 4.
Bg5 {[%clk 0:04:53.5]} 4... d6 {[%clk 0:04:52]} 5. Bxf6 {[%clk 0:04:52.5]} 5...
exf6 {[%clk 0:04:51]} 6. e4 {[%clk 0:04:51.8]} 6... b4 {[%clk 0:04:50.1]} 7.
Bb5+ {[%clk 0:04:49.9]} 7... Bd7 {[%clk 0:04:48.8]} 8. Bxd7+ {[%clk 0:04:49.1]}
8... Nxd7 {[%clk 0:04:47.9]} 9. a3 {[%clk 0:04:48.5]} 9... a5 {[%clk 0:04:44.3]}
10. Nbd2 {[%clk 0:04:47.6]} 10... g6 {[%clk 0:04:43]} 11. Nc4 {[%clk 0:04:46.5]}
11... Nb6 {[%clk 0:04:35.9]} 12. Qe2 {[%clk 0:04:44.4]} 12... Bg7 {[%clk
0:04:25.3]} 13. axb4 {[%clk 0:04:43.4]} 13... Nxc4 {[%clk 0:04:21.2]} 14. Qxc4
{[%clk 0:04:41.9]} 14... axb4 {[%clk 0:04:20.5]} 15. Qb5+ {[%clk 0:04:40]} 15...
Ke7 {[%clk 0:04:11.8]} 16. Qb7+ {[%clk 0:04:31]} 16... Qd7 {[%clk 0:04:10.6]}
17. Qxa8 {[%clk 0:04:29.6]} 17... Rxa8 {[%clk 0:04:08.8]} 18. Rxa8 {[%clk
0:04:29.5]} 18... f5 {[%clk 0:04:07.9]} 19. exf5 {[%clk 0:04:24.2]} 19... Bxb2
{[%clk 0:04:01.3]} 20. O-O {[%clk 0:04:22.1]} 20... Bc3 {[%clk 0:03:58.4]} 21.
fxg6 {[%clk 0:04:18.9]} 21... hxg6 {[%clk 0:03:56.8]} 22. h4 {[%clk 0:04:08.6]}
22... Qf5 {[%clk 0:03:55.5]} 23. Ra7+ {[%clk 0:04:06.9]} 23... Kf6 {[%clk
0:03:51.4]} 24. Ng5 {[%clk 0:03:42.2]} 24... Qxc2 {[%clk 0:03:49.7]} 25. f4
{[%clk 0:03:31.2]} 25... Kf5 {[%clk 0:03:40.5]} 26. Nxf7 {[%clk 0:03:25.2]}
26... Ke4 {[%clk 0:03:22.5]} 27. Nxd6+ {[%clk 0:03:18.4]} 27... Kxd5 {[%clk
0:03:21.5]} 28. Nb5 {[%clk 0:02:57.4]} 28... Bd2 {[%clk 0:03:15.9]} 29. h5
{[%clk 0:02:50.6]} 29... Be3+ {[%clk 0:03:00.9]} 30. Kh2 {[%clk 0:02:48.5]}
30... Qc4 {[%clk 0:02:41]} 31. Nc7+ {[%clk 0:02:35]} 31... Kc6 {[%clk
0:02:39.4]} 32. Rfa1 {[%clk 0:00:40.4]} 32... Bxf4+ {[%clk 0:02:32]} 33. g3
{[%clk 0:00:36.8]} 33... Qe2+ {[%clk 0:02:20.2]} 34. Kh3 {[%clk 0:00:33.2]}
34... Qxh5+ {[%clk 0:02:18.7]} 35. Kg2 {[%clk 0:00:32.5]} 35... Qe2+ {[%clk
0:02:13.5]} 36. Kh3 {[%clk 0:00:31.1]} 36... Bxc7 {[%clk 0:02:12.4]} 37. R1a6+
{[%clk 0:00:29.4]} 37... Bb6 {[%clk 0:02:10.8]} 0-1

[Event "Live Chess"]
[Site "Chess.com"]
[Date "2024.06.02"]
[Round "-"]
[White "vincents82"]
[Black "f4nomore"]
[Result "1-0"]
[WhiteElo "1999"]
[BlackElo "1249"]
[TimeControl "300"]
[EndTime "0:14:04 PDT"]
[Termination "vincents82 won by checkmate"]

1. e4 {[%clk 0:04:57.7]} 1... g6 {[%clk 0:04:59]} 2. d4 {[%clk 0:04:50.5]} 2...
Bg7 {[%clk 0:04:57.7]} 3. Nc3 {[%clk 0:04:48.5]} 3... d6 {[%clk 0:04:57]} 4. Be3
{[%clk 0:04:47.9]} 4... a6 {[%clk 0:04:56]} 5. Qd2 {[%clk 0:04:47.2]} 5... Nd7
{[%clk 0:04:53.6]} 6. f3 {[%clk 0:04:46.4]} 6... b5 {[%clk 0:04:51.9]} 7. Bd3
{[%clk 0:04:44]} 7... Bb7 {[%clk 0:04:50]} 8. h4 {[%clk 0:04:42.9]} 8... h5
{[%clk 0:04:47.7]} 9. g4 {[%clk 0:04:41.3]} 9... hxg4 {[%clk 0:04:40.9]} 10.
fxg4 {[%clk 0:04:38.1]} 10... Ndf6 {[%clk 0:04:35.9]} 11. g5 {[%clk 0:04:30.7]}
11... Nh5 {[%clk 0:04:32.5]} 12. O-O-O {[%clk 0:04:26.4]} 12... e6 {[%clk
0:04:26.1]} 13. Nge2 {[%clk 0:04:25.3]} 13... Ne7 {[%clk 0:04:23.5]} 14. Nf4
{[%clk 0:04:22.9]} 14... e5 {[%clk 0:04:16]} 15. dxe5 {[%clk 0:04:14.3]} 15...
Bxe5 {[%clk 0:04:13.2]} 16. Nxh5 {[%clk 0:04:13.1]} 16... Rxh5 {[%clk
0:04:09.6]} 17. Be2 {[%clk 0:04:09.5]} 17... Rh8 {[%clk 0:04:03.2]} 18. h5
{[%clk 0:04:07.6]} 18... gxh5 {[%clk 0:03:59.7]} 19. Bxh5 {[%clk 0:04:04.9]}
19... Qd7 {[%clk 0:03:55]} 20. Rdf1 {[%clk 0:03:59.1]} 20... O-O-O {[%clk
0:03:51.6]} 21. Bxf7 {[%clk 0:03:52.2]} 21... Rxh1 {[%clk 0:03:45.3]} 22. Rxh1
{[%clk 0:03:51.1]} 22... Qg4 {[%clk 0:03:25.7]} 23. Nd5 {[%clk 0:03:44.6]} 23...
Nxd5 {[%clk 0:03:01.4]} 24. exd5 {[%clk 0:03:42.6]} 24... Qf3 {[%clk 0:02:43]}
25. Be6+ {[%clk 0:03:37.5]} 25... Kb8 {[%clk 0:02:39.9]} 26. Rg1 {[%clk
0:03:34.6]} 26... c6 {[%clk 0:02:15.2]} 27. g6 {[%clk 0:03:32.3]} 27... cxd5
{[%clk 0:02:11.8]} 28. g7 {[%clk 0:03:30.2]} 28... d4 {[%clk 0:02:00.6]} 29.
g8=Q {[%clk 0:03:27]} 29... Rxg8 {[%clk 0:01:57.6]} 30. Rxg8+ {[%clk 0:03:25.4]}
30... Ka7 {[%clk 0:01:51.2]} 31. Bxd4+ {[%clk 0:03:22.1]} 31... Bxd4 {[%clk
0:01:41.7]} 32. Qxd4# {[%clk 0:03:21]} 1-0

[Event "Live Chess"]
[Site "Chess.com"]
[Date "2024.06.02"]
[Round "-"]
[White "Duke_of_Bebington"]
[Black "wadsy27"]
[Result "0-1"]
[WhiteElo "1697"]
[BlackElo "2586"]
[TimeControl "300"]
[EndTime "0:15:01 PDT"]
[Termination "wadsy27 won by resignation"]

1. e4 {[%clk 0:04:58]} 1... c5 {[%clk 0:04:57.5]} 2. Nf3 {[%clk 0:04:53]} 2...
e6 {[%clk 0:04:56.9]} 3. c3 {[%clk 0:04:51.9]} 3... d5 {[%clk 0:04:55.6]} 4.
exd5 {[%clk 0:04:50.5]} 4... Qxd5 {[%clk 0:04:55]} 5. d4 {[%clk 0:04:49.9]} 5...
Nf6 {[%clk 0:04:54.5]} 6. dxc5 {[%clk 0:04:46.7]} 6... Qxd1+ {[%clk 0:04:53]} 7.
Kxd1 {[%clk 0:04:45.2]} 7... Bxc5 {[%clk 0:04:52.6]} 8. Bb5+ {[%clk 0:04:42.4]}
8... Bd7 {[%clk 0:04:49.2]} 9. Bxd7+ {[%clk 0:04:40]} 9... Nbxd7 {[%clk
0:04:49.1]} 10. Bf4 {[%clk 0:04:37]} 10... Bxf2 {[%clk 0:04:47.1]} 11. Nbd2
{[%clk 0:04:33.6]} 11... O-O {[%clk 0:04:45.1]} 12. Kc2 {[%clk 0:04:32.7]} 12...
Nd5 {[%clk 0:04:41.7]} 13. Bd6 {[%clk 0:04:28.9]} 13... Rfd8 {[%clk 0:04:39.9]}
14. Bg3 {[%clk 0:04:18.2]} 14... Bxg3 {[%clk 0:04:34.6]} 15. hxg3 {[%clk
0:04:18.1]} 15... Rac8 {[%clk 0:04:32.9]} 16. a3 {[%clk 0:04:15.1]} 16... Nc5
{[%clk 0:04:28.3]} 17. Rae1 {[%clk 0:04:11.4]} 17... a5 {[%clk 0:04:26.9]} 18.
Ne4 {[%clk 0:04:05.6]} 18... h6 {[%clk 0:04:24.3]} 19. g4 {[%clk 0:03:59.9]}
19... Nxe4 {[%clk 0:04:21.6]} 20. Rxe4 {[%clk 0:03:58.2]} 20... Nf6 {[%clk
0:04:17]} 21. Ra4 {[%clk 0:03:54.3]} 21... Rd5 {[%clk 0:04:08.3]} 22. Rd4 {[%clk
0:03:33.6]} 22... Rxd4 {[%clk 0:04:05.9]} 23. Nxd4 {[%clk 0:03:33.5]} 23... Nxg4
{[%clk 0:04:05.4]} 0-1

[Event "Live Chess"]
[Site "Chess.com"]
[Date "2024.06.02"]
[Round "-"]
[White "MaximKovalenko83"]
[Black "JohanKjeldahl"]
[Result "1-0"]
[WhiteElo "2178"]
[BlackElo "1848"]
[TimeControl "300"]
[EndTime "0:15:30 PDT"]
[Termination "MaximKovalenko83 won by resignation"]

1. e4 {[%clk 0:04:53.7]} 1... c5 {[%clk 0:04:58.2]} 2. Nf3 {[%clk 0:04:51.9]}
2... e6 {[%clk 0:04:57.1]} 3. d3 {[%clk 0:04:51.1]} 3... Nc6 {[%clk 0:04:54.5]}
4. Be2 {[%clk 0:04:49.5]} 4... Nf6 {[%clk 0:04:49.6]} 5. O-O {[%clk 0:04:47.6]}
5... d5 {[%clk 0:04:47.9]} 6. exd5 {[%clk 0:04:45.1]} 6... Nxd5 {[%clk
0:04:46.7]} 7. c3 {[%clk 0:04:43.9]} 7... Be7 {[%clk 0:04:45.1]} 8. d4 {[%clk
0:04:42.7]} 8... O-O {[%clk 0:04:42.1]} 9. Nbd2 {[%clk 0:04:32.5]} 9... cxd4
{[%clk 0:04:39.6]} 10. cxd4 {[%clk 0:04:31.4]} 10... b6 {[%clk 0:04:36.3]} 11.
a3 {[%clk 0:04:27.9]} 11... Bb7 {[%clk 0:04:34.2]} 12. Nc4 {[%clk 0:04:25.8]}
12... Rc8 {[%clk 0:04:30.3]} 13. Nce5 {[%clk 0:04:24.2]} 13... Bf6 {[%clk
0:04:24.5]} 14. Nxc6 {[%clk 0:04:20.3]} 14... Bxc6 {[%clk 0:04:21.4]} 15. Be3
{[%clk 0:04:19.9]} 15... Nxe3 {[%clk 0:04:13.9]} 16. fxe3 {[%clk 0:04:18.6]}
16... Qd5 {[%clk 0:04:11.8]} 17. Rc1 {[%clk 0:04:15.7]} 17... h6 {[%clk
0:04:08]} 18. Bd3 {[%clk 0:04:11.6]} 18... Bg5 {[%clk 0:04:00.7]} 19. Qe2 {[%clk
0:04:08.3]} 19... Bb7 {[%clk 0:03:41]} 20. e4 {[%clk 0:04:02.8]} 20... Qd7
{[%clk 0:03:29.1]} 21. Rcd1 {[%clk 0:03:59.1]} 21... Bf4 {[%clk 0:03:21.5]} 22.
Bb1 {[%clk 0:03:51.7]} 22... Qe7 {[%clk 0:03:12.4]} 23. Qf2 {[%clk 0:03:39.5]}
23... e5 {[%clk 0:03:07.4]} 24. d5 {[%clk 0:03:34.7]} 24... Qc5 {[%clk
0:03:00.8]} 25. Qxc5 {[%clk 0:03:26.7]} 25... Rxc5 {[%clk 0:02:59.1]} 26. Rfe1
{[%clk 0:03:15.3]} 26... f6 {[%clk 0:02:57.4]} 27. g3 {[%clk 0:03:13.2]} 27...
Bg5 {[%clk 0:02:53.3]} 28. h4 {[%clk 0:03:11.8]} 1-0

[Event "Live Chess"]
[Site "Chess.com"]
[Date "2024.06.02"]
[Round "-"]
[White "Cimon"]
[Black "Dhaydon19"]
[Result "0-1"]
[WhiteElo "1805"]
[BlackElo "2673"]
[TimeControl "300"]
[EndTime "0:15:31 PDT"]
[Termination "Dhaydon19 won by resignation"]

1. d4 {[%clk 0:04:56.8]} 1... c6 {[%clk 0:04:59.7]} 2. c4 {[%clk 0:04:53.4]}
2... d5 {[%clk 0:04:59.2]} 3. Nf3 {[%clk 0:04:51]} 3... Nf6 {[%clk 0:04:57.8]}
4. Nc3 {[%clk 0:04:48.7]} 4... e6 {[%clk 0:04:57]} 5. e3 {[%clk 0:04:44.2]} 5...
Bd6 {[%clk 0:04:55]} 6. Bd3 {[%clk 0:04:36.7]} 6... Nbd7 {[%clk 0:04:53.7]} 7.
O-O {[%clk 0:04:32.1]} 7... Qe7 {[%clk 0:04:52.8]} 8. e4 {[%clk 0:04:24.9]} 8...
dxe4 {[%clk 0:04:51.3]} 9. Nxe4 {[%clk 0:04:23.3]} 9... Nxe4 {[%clk 0:04:50.8]}
10. Bxe4 {[%clk 0:04:22.3]} 10... h6 {[%clk 0:04:50.4]} 11. Re1 {[%clk
0:04:14.1]} 11... O-O {[%clk 0:04:47.2]} 12. b3 {[%clk 0:04:09.9]} 12... Re8
{[%clk 0:04:45.1]} 13. Bb2 {[%clk 0:04:08]} 13... Ba3 {[%clk 0:04:34]} 14. Bc3
{[%clk 0:04:04.2]} 14... Bb4 {[%clk 0:04:30.9]} 15. Qd3 {[%clk 0:04:02.8]} 15...
Bxc3 {[%clk 0:04:21.2]} 16. Qxc3 {[%clk 0:04:01.6]} 16... Nf6 {[%clk 0:04:20.8]}
17. Bc2 {[%clk 0:03:58.6]} 17... Bd7 {[%clk 0:04:16.4]} 18. Ne5 {[%clk
0:03:57.1]} 18... Red8 {[%clk 0:04:13.6]} 19. Rad1 {[%clk 0:03:54.7]} 19... Be8
{[%clk 0:04:12.2]} 20. c5 {[%clk 0:03:50.1]} 20... b6 {[%clk 0:04:04.8]} 21. b4
{[%clk 0:03:48.9]} 21... a5 {[%clk 0:04:02.7]} 22. a3 {[%clk 0:03:47.4]} 22...
axb4 {[%clk 0:03:59.4]} 23. axb4 {[%clk 0:03:46.4]} 23... b5 {[%clk 0:03:58.2]}
24. Qd3 {[%clk 0:03:06.2]} 24... g6 {[%clk 0:03:51.5]} 25. Re3 {[%clk
0:02:59.5]} 25... Nd5 {[%clk 0:03:50.4]} 26. Rg3 {[%clk 0:02:57.8]} 26... Nxb4
{[%clk 0:03:48]} 27. Qe4 {[%clk 0:02:54.8]} 27... Nxc2 {[%clk 0:03:43.6]} 28.
Qxc2 {[%clk 0:02:53.5]} 28... Ra4 {[%clk 0:03:41.2]} 29. Nf3 {[%clk 0:02:35.9]}
29... Qf6 {[%clk 0:03:35.9]} 30. h4 {[%clk 0:02:31.6]} 30... h5 {[%clk
0:03:33.1]} 31. Re1 {[%clk 0:02:01.2]} 31... Rc4 {[%clk 0:03:26.5]} 32. Qb1
{[%clk 0:01:51.3]} 32... Qf5 {[%clk 0:03:21.3]} 33. Qb3 {[%clk 0:01:33.7]} 33...
Rd5 {[%clk 0:03:07.8]} 34. Rg5 {[%clk 0:01:31.1]} 34... Qc2 {[%clk 0:03:05.8]}
35. Qe3 {[%clk 0:01:28.8]} 35... Rf5 {[%clk 0:02:55.2]} 36. Re2 {[%clk
0:01:00.9]} 36... Qc1+ {[%clk 0:02:51.8]} 37. Kh2 {[%clk 0:00:59.5]} 37... Qxe3
{[%clk 0:02:50.4]} 38. Rxe3 {[%clk 0:00:54.9]} 38... Rxg5 {[%clk 0:02:48.3]} 39.
hxg5 {[%clk 0:00:49.1]} 39... b4 {[%clk 0:02:47.2]} 40. Ne5 {[%clk 0:00:40.5]}
40... Rxd4 {[%clk 0:02:44]} 41. Rb3 {[%clk 0:00:37.2]} 41... Rd5 {[%clk
0:02:41.1]} 42. Nf3 {[%clk 0:00:35.4]} 42... Rxc5 {[%clk 0:02:39.1]} 43. Rxb4
{[%clk 0:00:34.5]} 43... Rb5 {[%clk 0:02:34.8]} 44. Rd4 {[%clk 0:00:33]} 44...
Kf8 {[%clk 0:02:32.6]} 45. Nd2 {[%clk 0:00:29.4]} 45... Rd5 {[%clk 0:02:29.9]}
46. Nb3 {[%clk 0:00:26.4]} 46... Rxg5 {[%clk 0:02:25.7]} 47. f4 {[%clk
0:00:16.7]} 47... Rd5 {[%clk 0:02:24.1]} 48. Rc4 {[%clk 0:00:15.2]} 48... Ke7
{[%clk 0:02:22.6]} 49. Na5 {[%clk 0:00:12.7]} 49... Rxa5 {[%clk 0:02:19.6]} 0-1

[Event "Live Chess"]
[Site "Chess.com"]
[Date "2024.06.02"]
[Round "-"]
[White "Greenbecker"]
[Black "JanMur7"]
[Result "0-1"]
[WhiteElo "1721"]
[BlackElo "2272"]
[TimeControl "300"]
[EndTime "0:17:18 PDT"]
[Termination "JanMur7 won on time"]

1. e4 {[%clk 0:04:56.8]} 1... g6 {[%clk 0:04:57.8]} 2. d4 {[%clk 0:04:54.9]}
2... Bg7 {[%clk 0:04:57.1]} 3. Nc3 {[%clk 0:04:54.2]} 3... c5 {[%clk 0:04:55.3]}
4. Nf3 {[%clk 0:04:53.2]} 4... cxd4 {[%clk 0:04:53.8]} 5. Nxd4 {[%clk
0:04:50.7]} 5... Nc6 {[%clk 0:04:53.7]} 6. Be3 {[%clk 0:04:38.9]} 6... d6 {[%clk
0:04:49.3]} 7. Bb5 {[%clk 0:04:35.7]} 7... Bd7 {[%clk 0:04:47.5]} 8. Nxc6 {[%clk
0:04:34.2]} 8... bxc6 {[%clk 0:04:46.4]} 9. Bc4 {[%clk 0:04:33]} 9... Nf6 {[%clk
0:04:45.3]} 10. O-O {[%clk 0:04:30.8]} 10... O-O {[%clk 0:04:40.5]} 11. Qd2
{[%clk 0:04:24.4]} 11... Ng4 {[%clk 0:04:39]} 12. Bf4 {[%clk 0:04:19.3]} 12...
Ne5 {[%clk 0:04:31.5]} 13. Bb3 {[%clk 0:04:13]} 13... c5 {[%clk 0:04:23.5]} 14.
Rad1 {[%clk 0:03:56.9]} 14... Qa5 {[%clk 0:04:05.5]} 15. Nd5 {[%clk 0:03:48.6]}
15... Qd8 {[%clk 0:03:59]} 16. Bg5 {[%clk 0:03:26.8]} 16... Re8 {[%clk
0:03:48.4]} 17. f4 {[%clk 0:03:24]} 17... Nc6 {[%clk 0:03:42.4]} 18. f5 {[%clk
0:03:12.8]} 18... Ne5 {[%clk 0:03:06.2]} 19. fxg6 {[%clk 0:03:04.8]} 19... hxg6
{[%clk 0:02:43.9]} 20. Nxe7+ {[%clk 0:03:00.3]} 20... Rxe7 {[%clk 0:02:39.3]}
21. Bxe7 {[%clk 0:02:57.5]} 21... Qxe7 {[%clk 0:02:38.2]} 22. Qxd6 {[%clk
0:02:32.4]} 22... Qxd6 {[%clk 0:02:35.4]} 23. Rxd6 {[%clk 0:02:30.2]} 23... Bb5
{[%clk 0:02:31.4]} 24. Rf2 {[%clk 0:02:14.1]} 24... c4 {[%clk 0:02:27.9]} 25.
Rd5 {[%clk 0:02:07.5]} 25... cxb3 {[%clk 0:02:21.7]} 26. Rxb5 {[%clk 0:02:05.9]}
26... bxa2 {[%clk 0:02:20.8]} 27. Ra5 {[%clk 0:02:00]} 27... Nc4 {[%clk
0:02:19.9]} 28. Rxa2 {[%clk 0:01:55.1]} 28... Bd4 {[%clk 0:02:18.1]} 29. b3
{[%clk 0:01:32.8]} 29... Nd2 {[%clk 0:02:10.9]} 30. c4 {[%clk 0:01:11.7]} 30...
Nxe4 {[%clk 0:02:08.9]} 31. Kf1 {[%clk 0:01:08.4]} 31... Nxf2 {[%clk 0:02:07.8]}
32. b4 {[%clk 0:01:04.6]} 32... Nd3 {[%clk 0:02:05]} 33. Rd2 {[%clk 0:01:01.5]}
33... Bc3 {[%clk 0:02:02.1]} 34. Rxd3 {[%clk 0:00:59.9]} 34... Bxb4 {[%clk
0:02:01.3]} 35. Rb3 {[%clk 0:00:50.7]} 35... a5 {[%clk 0:02:00.1]} 36. Ke2
{[%clk 0:00:49.6]} 36... Rd8 {[%clk 0:01:56.5]} 37. Rb2 {[%clk 0:00:43.4]} 37...
Rd4 {[%clk 0:01:50.3]} 38. Rc2 {[%clk 0:00:41.5]} 38... a4 {[%clk 0:01:46.1]}
39. c5 {[%clk 0:00:40.3]} 39... a3 {[%clk 0:01:44.6]} 40. c6 {[%clk 0:00:39.3]}
40... Rd8 {[%clk 0:01:42.9]} 41. h3 {[%clk 0:00:24.1]} 41... Rc8 {[%clk
0:01:38.1]} 42. Kd3 {[%clk 0:00:21.3]} 42... a2 {[%clk 0:01:36.7]} 43. Rxa2
{[%clk 0:00:18.1]} 43... Rxc6 {[%clk 0:01:35]} 44. Rb2 {[%clk 0:00:13.5]} 44...
Be7 {[%clk 0:01:32.5]} 45. Rb7 {[%clk 0:00:11.9]} 45... Bf6 {[%clk 0:01:29.9]}
46. Ke4 {[%clk 0:00:10.3]} 46... Kg7 {[%clk 0:01:29.1]} 47. Kf3 {[%clk
0:00:06.6]} 47... Rc3+ {[%clk 0:01:27.5]} 48. Kg4 {[%clk 0:00:05]} 48... Rc2
{[%clk 0:01:24.7]} 49. Kf3 {[%clk 0:00:03.1]} 49... Bh4 {[%clk 0:01:22.8]} 50.
Rb3 {[%clk 0:00:00.8]} 50... f5 {[%clk 0:01:19.8]} 0-1